[Event "Early-Titled-Tuesday-Blitz-May-07-2024"]
[Site "Chess.com"]
[Date "2024.05.07"]
[Round "9"]
[White "Triumphmate"]
[Black "Caroexpert"]
[Result "0-1"]
[WhiteElo "2459"]
[BlackElo "2681"]
[TimeControl "180+1"]
[EndTime "9:52:15 PDT"]
[Termination "Caroexpert won by checkmate"]

1. e4 {[%clk 0:02:57.5]} 1... c6 {[%clk 0:02:56]} 2. d4 {[%clk 0:02:57.1]} 2...
d5 {[%clk 0:02:56.9]} 3. exd5 {[%clk 0:02:56.4]} 3... cxd5 {[%clk 0:02:56.8]} 4.
Bd3 {[%clk 0:02:57]} 4... Nf6 {[%clk 0:02:53.6]} 5. Nf3 {[%clk 0:02:57.4]} 5...
Bg4 {[%clk 0:02:49]} 6. O-O {[%clk 0:02:57.8]} 6... Nc6 {[%clk 0:02:48.6]} 7. c3
{[%clk 0:02:58.5]} 7... e6 {[%clk 0:02:48.9]} 8. Be3 {[%clk 0:02:59.1]} 8... Bd6
{[%clk 0:02:48.6]} 9. Nbd2 {[%clk 0:02:59.9]} 9... O-O {[%clk 0:02:48.8]} 10.
Qc2 {[%clk 0:03:00.6]} 10... Bh5 {[%clk 0:02:48.4]} 11. Rae1 {[%clk 0:03:00.5]}
11... Rc8 {[%clk 0:02:48.7]} 12. Qb1 {[%clk 0:02:59.3]} 12... Bg6 {[%clk
0:02:47.7]} 13. Bg5 {[%clk 0:02:55.6]} 13... Qc7 {[%clk 0:02:46]} 14. Re2 {[%clk
0:02:50.5]} 14... Nh5 {[%clk 0:02:35.8]} 15. Bxg6 {[%clk 0:02:49.4]} 15... hxg6
{[%clk 0:02:35.3]} 16. Rfe1 {[%clk 0:02:47.1]} 16... b5 {[%clk 0:02:32.8]} 17.
Qd3 {[%clk 0:02:46.5]} 17... Na5 {[%clk 0:02:18.5]} 18. Nf1 {[%clk 0:02:28.8]}
18... b4 {[%clk 0:02:08.2]} 19. Ng3 {[%clk 0:02:28]} 19... Nxg3 {[%clk
0:01:43.3]} 20. hxg3 {[%clk 0:02:26.5]} 20... bxc3 {[%clk 0:01:43.3]} 21. bxc3
{[%clk 0:01:57.6]} 21... Qxc3 {[%clk 0:01:37.9]} 22. Qa6 {[%clk 0:01:58.2]}
22... Nc4 {[%clk 0:01:24.8]} 23. Qxa7 {[%clk 0:01:38.7]} 23... Rc7 {[%clk
0:00:59.6]} 24. Qa6 {[%clk 0:01:27.9]} 24... Qa5 {[%clk 0:00:59.6]} 25. Qxa5
{[%clk 0:01:21.7]} 25... Nxa5 {[%clk 0:01:00.5]} 26. Bf4 {[%clk 0:01:14.6]}
26... Nc4 {[%clk 0:00:55.6]} 27. Rc1 {[%clk 0:01:09.9]} 27... Ra7 {[%clk
0:00:24.8]} 28. Bxd6 {[%clk 0:01:02.7]} 28... Nxd6 {[%clk 0:00:24.4]} 29. Rc6
{[%clk 0:01:02.8]} 29... Ne4 {[%clk 0:00:18]} 30. Rb2 {[%clk 0:00:53.8]} 30...
Rfa8 {[%clk 0:00:17.7]} 31. Ne5 {[%clk 0:00:47.7]} 31... g5 {[%clk 0:00:12.2]}
32. Rcc2 {[%clk 0:00:37.6]} 32... f6 {[%clk 0:00:10.9]} 33. Nd3 {[%clk
0:00:33.2]} 33... Ra4 {[%clk 0:00:10.2]} 34. Nc5 {[%clk 0:00:31.2]} 34... Rxd4
{[%clk 0:00:10.1]} 35. Nxe6 {[%clk 0:00:31.2]} 35... Rd1+ {[%clk 0:00:10.7]} 36.
Kh2 {[%clk 0:00:31.8]} 36... Kf7 {[%clk 0:00:11.1]} 37. Nc5 {[%clk 0:00:24.9]}
37... Rh8# {[%clk 0:00:11]} 0-1

[Event "Early-Titled-Tuesday-Blitz-May-07-2024"]
[Site "Chess.com"]
[Date "2024.05.07"]
[Round "9"]
[White "rookpower2004"]
[Black "talaicito"]
[Result "1-0"]
[WhiteElo "2532"]
[BlackElo "2375"]
[TimeControl "180+1"]
[EndTime "9:52:16 PDT"]
[Termination "rookpower2004 won on time"]

1. e4 {[%clk 0:03:00.9]} 1... c5 {[%clk 0:02:56.5]} 2. Nf3 {[%clk 0:02:59.3]}
2... d6 {[%clk 0:02:56.7]} 3. d4 {[%clk 0:02:58.1]} 3... cxd4 {[%clk 0:02:57.6]}
4. Nxd4 {[%clk 0:02:58.8]} 4... Nf6 {[%clk 0:02:58.5]} 5. Nc3 {[%clk 0:02:59]}
5... g6 {[%clk 0:02:59]} 6. f4 {[%clk 0:02:58.3]} 6... Nbd7 {[%clk 0:02:58.4]}
7. Nf3 {[%clk 0:02:57.5]} 7... Bg7 {[%clk 0:02:50.6]} 8. Bd3 {[%clk 0:02:57.6]}
8... O-O {[%clk 0:02:48.1]} 9. O-O {[%clk 0:02:57.3]} 9... Nc5 {[%clk
0:02:20.1]} 10. Kh1 {[%clk 0:02:55.5]} 10... Bg4 {[%clk 0:02:13.2]} 11. Qe1
{[%clk 0:02:53.3]} 11... Rc8 {[%clk 0:02:06.9]} 12. Qh4 {[%clk 0:02:43.3]} 12...
Qa5 {[%clk 0:01:53.9]} 13. e5 {[%clk 0:02:37.2]} 13... Bxf3 {[%clk 0:01:52.6]}
14. Rxf3 {[%clk 0:02:32.9]} 14... Nfd7 {[%clk 0:01:27.2]} 15. Rh3 {[%clk
0:02:26.6]} 15... h6 {[%clk 0:01:22.5]} 16. Nd5 {[%clk 0:02:17.5]} 16... Nxd3
{[%clk 0:01:02.5]} 17. Nxe7+ {[%clk 0:02:16.7]} 17... Kh7 {[%clk 0:00:58.8]} 18.
Nxc8 {[%clk 0:01:57]} 18... Nxc1 {[%clk 0:00:39]} 19. Nxd6 {[%clk 0:01:50.9]}
19... Qd2 {[%clk 0:00:37.9]} 20. g4 {[%clk 0:00:43.5]} 20... Nxe5 {[%clk
0:00:18]} 21. fxe5 {[%clk 0:00:37.7]} 21... Bxe5 {[%clk 0:00:18.6]} 22. Ne4
{[%clk 0:00:23.8]} 22... Qd1+ {[%clk 0:00:16.7]} 23. Kg2 {[%clk 0:00:22.5]}
23... Qxc2+ {[%clk 0:00:17]} 24. Nf2 {[%clk 0:00:20.6]} 24... Rd8 {[%clk
0:00:11.5]} 25. Qxh6+ {[%clk 0:00:19.3]} 25... Kg8 {[%clk 0:00:09.7]} 26. Qxc1
{[%clk 0:00:15.3]} 26... Qa4 {[%clk 0:00:00.5]} 27. Qe1 {[%clk 0:00:06.4]} 1-0

[Event "Early-Titled-Tuesday-Blitz-May-07-2024"]
[Site "Chess.com"]
[Date "2024.05.07"]
[Round "9"]
[White "Naruto75_3"]
[Black "th3d4rkness"]
[Result "1-0"]
[WhiteElo "2417"]
[BlackElo "2219"]
[TimeControl "180+1"]
[EndTime "9:52:18 PDT"]
[Termination "Naruto75_3 won by resignation"]

1. d4 {[%clk 0:03:00.9]} 1... Nf6 {[%clk 0:02:59.3]} 2. c4 {[%clk 0:03:00.2]}
2... e6 {[%clk 0:02:57.6]} 3. Nc3 {[%clk 0:03:00.8]} 3... Bb4 {[%clk 0:02:57.2]}
4. Qc2 {[%clk 0:03:01]} 4... c5 {[%clk 0:02:56.9]} 5. dxc5 {[%clk 0:03:00.3]}
5... Bxc5 {[%clk 0:02:54.1]} 6. Bf4 {[%clk 0:03:00.7]} 6... a6 {[%clk
0:02:45.7]} 7. e3 {[%clk 0:03:00.6]} 7... O-O {[%clk 0:02:45]} 8. Bd3 {[%clk
0:02:59.3]} 8... Nc6 {[%clk 0:02:40.3]} 9. a3 {[%clk 0:02:58.6]} 9... d5 {[%clk
0:02:34.5]} 10. Nf3 {[%clk 0:02:56.2]} 10... dxc4 {[%clk 0:02:31.8]} 11. Bxc4
{[%clk 0:02:55.2]} 11... b5 {[%clk 0:02:29.9]} 12. Bd3 {[%clk 0:02:53.2]} 12...
Be7 {[%clk 0:01:59]} 13. Rd1 {[%clk 0:02:48]} 13... Qb6 {[%clk 0:01:53.1]} 14.
O-O {[%clk 0:02:42.8]} 14... Bb7 {[%clk 0:01:51.2]} 15. e4 {[%clk 0:02:35.7]}
15... h6 {[%clk 0:01:43.1]} 16. e5 {[%clk 0:02:31.3]} 16... Nh5 {[%clk
0:01:41.9]} 17. Be3 {[%clk 0:02:29.5]} 17... Qc7 {[%clk 0:01:37.7]} 18. Be4
{[%clk 0:02:13.7]} 18... Bg5 {[%clk 0:01:30.7]} 19. Ne2 {[%clk 0:02:01.7]} 19...
Bxe3 {[%clk 0:01:28.4]} 20. fxe3 {[%clk 0:02:02.6]} 20... Rac8 {[%clk
0:01:23.5]} 21. Rd6 {[%clk 0:01:40.9]} 21... Ne7 {[%clk 0:01:07.3]} 22. Qxc7
{[%clk 0:01:35.4]} 22... Rxc7 {[%clk 0:01:05.5]} 23. Bxb7 {[%clk 0:01:34.7]}
23... Rxb7 {[%clk 0:01:05.8]} 24. g4 {[%clk 0:01:30.6]} 24... Rc8 {[%clk
0:00:57]} 25. gxh5 {[%clk 0:01:28.8]} 25... Nf5 {[%clk 0:00:57.1]} 26. Rd3
{[%clk 0:01:24.8]} 26... Rc2 {[%clk 0:00:55.9]} 27. Ned4 {[%clk 0:01:24.2]}
27... Rxb2 {[%clk 0:00:44.9]} 28. Nxf5 {[%clk 0:01:22.7]} 28... exf5 {[%clk
0:00:45.1]} 29. Rd2 {[%clk 0:01:21.2]} 29... Rb3 {[%clk 0:00:44.3]} 30. Re2
{[%clk 0:01:20.8]} 30... Rxa3 {[%clk 0:00:43.9]} 31. Nd4 {[%clk 0:01:20.7]}
31... g6 {[%clk 0:00:41.3]} 32. hxg6 {[%clk 0:01:17.5]} 32... fxg6 {[%clk
0:00:41.2]} 33. e6 {[%clk 0:01:17.7]} 33... Re7 {[%clk 0:00:40]} 34. Rc1 {[%clk
0:01:12.6]} 34... b4 {[%clk 0:00:37.4]} 35. Kf2 {[%clk 0:01:07.3]} 35... a5
{[%clk 0:00:35.2]} 36. Rec2 {[%clk 0:01:04.9]} 36... b3 {[%clk 0:00:33.6]} 37.
Rc8+ {[%clk 0:00:58.4]} 37... Kg7 {[%clk 0:00:33.9]} 38. R1c7 {[%clk 0:00:56.9]}
38... Kf6 {[%clk 0:00:25]} 39. Rxe7 {[%clk 0:00:47.5]} 39... Ra2+ {[%clk
0:00:24]} 40. Kf3 {[%clk 0:00:46.5]} 40... Kxe7 {[%clk 0:00:23.7]} 41. Rc7+
{[%clk 0:00:45]} 41... Kf6 {[%clk 0:00:14.7]} 42. e7 {[%clk 0:00:42]} 42... b2
{[%clk 0:00:14.8]} 43. e8=Q {[%clk 0:00:37]} 1-0

[Event "Early-Titled-Tuesday-Blitz-May-07-2024"]
[Site "Chess.com"]
[Date "2024.05.07"]
[Round "9"]
[White "zajka-molotok"]
[Black "Shield12"]
[Result "1-0"]
[WhiteElo "2547"]
[BlackElo "2950"]
[TimeControl "180+1"]
[EndTime "9:52:21 PDT"]
[Termination "zajka-molotok won on time"]

1. b3 {[%clk 0:02:50.9]} 1... d5 {[%clk 0:02:56.7]} 2. Bb2 {[%clk 0:02:51]} 2...
Bf5 {[%clk 0:02:57.3]} 3. e3 {[%clk 0:02:50.8]} 3... e6 {[%clk 0:02:57.6]} 4.
Nf3 {[%clk 0:02:51.1]} 4... h6 {[%clk 0:02:57.4]} 5. Be2 {[%clk 0:02:50.6]} 5...
Nf6 {[%clk 0:02:57.5]} 6. O-O {[%clk 0:02:51.1]} 6... Bd6 {[%clk 0:02:56.8]} 7.
d4 {[%clk 0:02:51.2]} 7... O-O {[%clk 0:02:56.1]} 8. c4 {[%clk 0:02:51.3]} 8...
c6 {[%clk 0:02:53.5]} 9. Nc3 {[%clk 0:02:51.5]} 9... Nbd7 {[%clk 0:02:54]} 10.
Bd3 {[%clk 0:02:51.6]} 10... Bg4 {[%clk 0:02:48.9]} 11. h3 {[%clk 0:02:48.7]}
11... Bh5 {[%clk 0:02:49.3]} 12. Be2 {[%clk 0:02:44.8]} 12... Qe7 {[%clk
0:02:46]} 13. Qc2 {[%clk 0:02:40.7]} 13... Rfe8 {[%clk 0:02:43.1]} 14. Rad1
{[%clk 0:02:35.7]} 14... a6 {[%clk 0:02:41.5]} 15. Rfe1 {[%clk 0:02:34.3]} 15...
Rad8 {[%clk 0:02:33.7]} 16. e4 {[%clk 0:02:29.2]} 16... dxe4 {[%clk 0:02:30.3]}
17. Nxe4 {[%clk 0:02:30.1]} 17... Nxe4 {[%clk 0:02:30.6]} 18. Qxe4 {[%clk
0:02:31]} 18... Bg6 {[%clk 0:02:29.5]} 19. Qe3 {[%clk 0:02:28.1]} 19... Ba3
{[%clk 0:02:20.4]} 20. Ba1 {[%clk 0:02:22.5]} 20... Bc2 {[%clk 0:02:18.1]} 21.
Rd2 {[%clk 0:01:54.3]} 21... Bg6 {[%clk 0:02:11.1]} 22. Red1 {[%clk 0:01:47]}
22... Bb4 {[%clk 0:02:05.8]} 23. Bc3 {[%clk 0:01:46.2]} 23... Bd6 {[%clk
0:02:06.5]} 24. Ne5 {[%clk 0:01:41.3]} 24... Nxe5 {[%clk 0:01:59.5]} 25. dxe5
{[%clk 0:01:42.2]} 25... Bc5 {[%clk 0:01:59.5]} 26. Qf4 {[%clk 0:01:33]} 26...
Rxd2 {[%clk 0:01:57.8]} 27. Rxd2 {[%clk 0:01:33.9]} 27... Rd8 {[%clk 0:01:50.4]}
28. b4 {[%clk 0:01:30.2]} 28... Bb6 {[%clk 0:01:45.9]} 29. c5 {[%clk 0:01:28.9]}
29... Bc7 {[%clk 0:01:45.4]} 30. g3 {[%clk 0:01:06.6]} 30... Rxd2 {[%clk
0:01:40]} 31. Qxd2 {[%clk 0:01:07.5]} 31... Qd8 {[%clk 0:01:22.2]} 32. Qxd8+
{[%clk 0:01:05.9]} 32... Bxd8 {[%clk 0:01:21.9]} 33. f4 {[%clk 0:01:06.8]} 33...
Be4 {[%clk 0:01:18.4]} 34. Kf2 {[%clk 0:01:06.4]} 34... Bd5 {[%clk 0:01:17.8]}
35. a3 {[%clk 0:01:06.6]} 35... g5 {[%clk 0:00:46.2]} 36. a4 {[%clk 0:00:55.4]}
36... Bb3 {[%clk 0:00:43.4]} 37. b5 {[%clk 0:00:55.6]} 37... a5 {[%clk 0:00:39]}
38. b6 {[%clk 0:00:49.3]} 38... Be7 {[%clk 0:00:38.4]} 39. Bd4 {[%clk
0:00:43.8]} 39... Bd8 {[%clk 0:00:27.4]} 40. Bc3 {[%clk 0:00:35.8]} 40... Be7
{[%clk 0:00:23.5]} 41. Bd4 {[%clk 0:00:33.4]} 1-0

[Event "Early-Titled-Tuesday-Blitz-May-07-2024"]
[Site "Chess.com"]
[Date "2024.05.07"]
[Round "9"]
[White "HeroWilczek"]
[Black "willyam13"]
[Result "0-1"]
[WhiteElo "2562"]
[BlackElo "2469"]
[TimeControl "180+1"]
[EndTime "9:52:21 PDT"]
[Termination "willyam13 won by checkmate"]

1. e4 {[%clk 0:03:00.1]} 1... e5 {[%clk 0:03:00.3]} 2. Nf3 {[%clk 0:02:58.5]}
2... Nc6 {[%clk 0:03:00.7]} 3. Bc4 {[%clk 0:02:57.9]} 3... Bc5 {[%clk 0:03:00]}
4. c3 {[%clk 0:02:58.4]} 4... Nf6 {[%clk 0:03:00.5]} 5. d4 {[%clk 0:02:58.5]}
5... exd4 {[%clk 0:03:00.9]} 6. e5 {[%clk 0:02:59.4]} 6... d5 {[%clk 0:02:59.1]}
7. Bb5 {[%clk 0:02:59.8]} 7... Ne4 {[%clk 0:02:58.8]} 8. cxd4 {[%clk 0:03:00.3]}
8... Bb6 {[%clk 0:02:50.9]} 9. Nc3 {[%clk 0:02:59.9]} 9... O-O {[%clk
0:02:50.5]} 10. Be3 {[%clk 0:03:00.5]} 10... Bg4 {[%clk 0:02:25.2]} 11. h3
{[%clk 0:03:00.7]} 11... Bh5 {[%clk 0:02:25.1]} 12. Qc2 {[%clk 0:03:00.5]} 12...
Bg6 {[%clk 0:01:50.4]} 13. Qb3 {[%clk 0:03:00.7]} 13... Ne7 {[%clk 0:01:36.8]}
14. O-O {[%clk 0:03:00.7]} 14... c6 {[%clk 0:01:35]} 15. Be2 {[%clk 0:02:59.7]}
15... Nf5 {[%clk 0:01:29]} 16. Rfd1 {[%clk 0:02:45.9]} 16... Nxe3 {[%clk
0:01:24.2]} 17. fxe3 {[%clk 0:02:46.8]} 17... f6 {[%clk 0:01:22.7]} 18. Bd3
{[%clk 0:02:37.4]} 18... Kh8 {[%clk 0:01:04.1]} 19. Nh4 {[%clk 0:02:21.2]} 19...
Bh5 {[%clk 0:00:45.7]} 20. Nxe4 {[%clk 0:02:05.8]} 20... dxe4 {[%clk 0:00:27.1]}
21. Bxe4 {[%clk 0:02:05.5]} 21... fxe5 {[%clk 0:00:20.6]} 22. Nf3 {[%clk
0:02:03.7]} 22... exd4 {[%clk 0:00:18.1]} 23. exd4 {[%clk 0:02:04.6]} 23... Bxf3
{[%clk 0:00:14.1]} 24. Bxf3 {[%clk 0:02:05.5]} 24... Bxd4+ {[%clk 0:00:14.8]}
25. Kh1 {[%clk 0:02:06]} 25... Qf6 {[%clk 0:00:14]} 26. Rac1 {[%clk 0:01:39.1]}
26... Rab8 {[%clk 0:00:13]} 27. Rc4 {[%clk 0:01:34]} 27... c5 {[%clk 0:00:13.3]}
28. a4 {[%clk 0:01:29.2]} 28... b6 {[%clk 0:00:12.7]} 29. Qc2 {[%clk 0:01:20.1]}
29... Rbe8 {[%clk 0:00:11.8]} 30. b4 {[%clk 0:01:13.7]} 30... Re3 {[%clk
0:00:12.1]} 31. Bg4 {[%clk 0:00:52.2]} 31... Rfe8 {[%clk 0:00:08.4]} 32. Qd2
{[%clk 0:00:44.8]} 32... Qf4 {[%clk 0:00:07.8]} 33. Rcc1 {[%clk 0:00:28]} 33...
Qg3 {[%clk 0:00:07.8]} 34. Rf1 {[%clk 0:00:20.1]} 34... Be5 {[%clk 0:00:06.2]}
35. Rf3 {[%clk 0:00:10.9]} 35... Qh2# {[%clk 0:00:05.8]} 0-1

[Event "Early-Titled-Tuesday-Blitz-May-07-2024"]
[Site "Chess.com"]
[Date "2024.05.07"]
[Round "9"]
[White "Guldona_2007"]
[Black "Aleksandar-Topalov"]
[Result "0-1"]
[WhiteElo "2184"]
[BlackElo "2403"]
[TimeControl "180+1"]
[EndTime "9:52:23 PDT"]
[Termination "Aleksandar-Topalov won on time"]

1. e4 {[%clk 0:03:00]} 1... e6 {[%clk 0:02:59.4]} 2. d4 {[%clk 0:02:59.6]} 2...
d5 {[%clk 0:02:59.4]} 3. Nd2 {[%clk 0:02:59.9]} 3... Nf6 {[%clk 0:02:58.9]} 4.
e5 {[%clk 0:02:58.5]} 4... Ng8 {[%clk 0:02:59]} 5. Bd3 {[%clk 0:02:57]} 5... Ne7
{[%clk 0:02:58.9]} 6. c3 {[%clk 0:02:34]} 6... Qd7 {[%clk 0:02:58.7]} 7. Ne2
{[%clk 0:02:33.9]} 7... b6 {[%clk 0:02:59]} 8. Nf3 {[%clk 0:02:33.1]} 8... Ba6
{[%clk 0:02:58.9]} 9. O-O {[%clk 0:02:31.8]} 9... Bxd3 {[%clk 0:02:58.1]} 10.
Qxd3 {[%clk 0:02:31.9]} 10... c5 {[%clk 0:02:57.9]} 11. Be3 {[%clk 0:02:30.9]}
11... Nf5 {[%clk 0:02:56.6]} 12. Nd2 {[%clk 0:02:30.7]} 12... Nc6 {[%clk
0:02:54.8]} 13. Nf4 {[%clk 0:02:19.6]} 13... Be7 {[%clk 0:02:50.8]} 14. Rac1
{[%clk 0:02:06.7]} 14... O-O {[%clk 0:02:48.8]} 15. Nf3 {[%clk 0:01:49.7]} 15...
Rac8 {[%clk 0:02:45.5]} 16. g4 {[%clk 0:01:38.3]} 16... Nxe3 {[%clk 0:02:43.5]}
17. fxe3 {[%clk 0:01:36.9]} 17... f6 {[%clk 0:02:40.3]} 18. exf6 {[%clk
0:01:31.4]} 18... Bxf6 {[%clk 0:02:40.4]} 19. g5 {[%clk 0:01:25.2]} 19... Be7
{[%clk 0:02:39.8]} 20. h4 {[%clk 0:01:12.3]} 20... cxd4 {[%clk 0:02:19]} 21.
cxd4 {[%clk 0:01:07.5]} 21... Bd6 {[%clk 0:02:07.1]} 22. Ne2 {[%clk 0:01:01.4]}
22... e5 {[%clk 0:01:52.2]} 23. dxe5 {[%clk 0:00:49.9]} 23... Bxe5 {[%clk
0:01:07.5]} 24. Nxe5 {[%clk 0:00:36]} 24... Nxe5 {[%clk 0:01:07.5]} 25. Rxc8
{[%clk 0:00:34.7]} 25... Rxc8 {[%clk 0:00:58.7]} 26. Qd4 {[%clk 0:00:32.9]}
26... Qe6 {[%clk 0:00:51.8]} 27. Qf4 {[%clk 0:00:17.1]} 27... Ng4 {[%clk
0:00:40.1]} 28. Nd4 {[%clk 0:00:11.2]} 28... Qxe3+ {[%clk 0:00:38.2]} 29. Qxe3
{[%clk 0:00:11.1]} 29... Nxe3 {[%clk 0:00:38.4]} 30. Re1 {[%clk 0:00:11.3]}
30... Nc4 {[%clk 0:00:36.2]} 31. b3 {[%clk 0:00:10.6]} 31... Nd2 {[%clk
0:00:28.3]} 32. Rd1 {[%clk 0:00:09.2]} 32... Ne4 {[%clk 0:00:24.6]} 33. Nf5
{[%clk 0:00:07.9]} 33... Rc2 {[%clk 0:00:17.6]} 34. Rxd5 {[%clk 0:00:04.2]}
34... Rxa2 {[%clk 0:00:16.9]} 0-1

[Event "Early-Titled-Tuesday-Blitz-May-07-2024"]
[Site "Chess.com"]
[Date "2024.05.07"]
[Round "9"]
[White "pirulillo"]
[Black "MarkusRagger"]
[Result "1-0"]
[WhiteElo "2431"]
[BlackElo "2785"]
[TimeControl "180+1"]
[EndTime "9:52:25 PDT"]
[Termination "pirulillo won by resignation"]

1. e4 {[%clk 0:03:00.9]} 1... e5 {[%clk 0:02:51.2]} 2. Bc4 {[%clk 0:02:57.2]}
2... Nf6 {[%clk 0:02:49]} 3. d3 {[%clk 0:02:57.7]} 3... Nc6 {[%clk 0:02:46.9]}
4. Nf3 {[%clk 0:02:56.8]} 4... d5 {[%clk 0:02:43.2]} 5. exd5 {[%clk 0:02:56.4]}
5... Nxd5 {[%clk 0:02:44.1]} 6. h3 {[%clk 0:02:54.5]} 6... Nb6 {[%clk
0:02:39.1]} 7. Bb3 {[%clk 0:02:53.7]} 7... Be7 {[%clk 0:02:26.1]} 8. O-O {[%clk
0:02:51]} 8... O-O {[%clk 0:02:25.1]} 9. Re1 {[%clk 0:02:51.7]} 9... Bf6 {[%clk
0:02:24.9]} 10. Nbd2 {[%clk 0:02:45.4]} 10... a5 {[%clk 0:02:15.6]} 11. a3
{[%clk 0:02:40.2]} 11... a4 {[%clk 0:02:14.5]} 12. Ba2 {[%clk 0:02:36.7]} 12...
Bf5 {[%clk 0:01:44.2]} 13. Ne4 {[%clk 0:02:29.5]} 13... Re8 {[%clk 0:01:42.3]}
14. Bd2 {[%clk 0:01:53.9]} 14... Bxe4 {[%clk 0:01:18.7]} 15. dxe4 {[%clk
0:01:49.4]} 15... Qd6 {[%clk 0:01:10.1]} 16. Qe2 {[%clk 0:01:46.1]} 16... Rad8
{[%clk 0:01:07.3]} 17. Rad1 {[%clk 0:01:44.7]} 17... Qc5 {[%clk 0:00:50.1]} 18.
c3 {[%clk 0:01:38.8]} 18... Na5 {[%clk 0:00:38.9]} 19. Be3 {[%clk 0:01:37.1]}
19... Qc6 {[%clk 0:00:38.8]} 20. Bxb6 {[%clk 0:01:00.8]} 20... Qxb6 {[%clk
0:00:37.2]} 21. Rxd8 {[%clk 0:00:42.6]} 21... Rxd8 {[%clk 0:00:36.5]} 22. Rd1
{[%clk 0:00:42.8]} 22... c6 {[%clk 0:00:19.6]} 23. Rd2 {[%clk 0:00:36.6]} 23...
g6 {[%clk 0:00:16.8]} 24. Qd1 {[%clk 0:00:33.6]} 24... Rxd2 {[%clk 0:00:14.4]}
25. Qxd2 {[%clk 0:00:34.5]} 25... Qc7 {[%clk 0:00:14]} 26. Nh2 {[%clk
0:00:32.7]} 26... h5 {[%clk 0:00:12.7]} 27. Qh6 {[%clk 0:00:26.7]} 27... Bg7
{[%clk 0:00:12.4]} 28. Qxg6 {[%clk 0:00:25.6]} 28... b5 {[%clk 0:00:11.8]} 29.
Qxh5 {[%clk 0:00:25]} 29... Qd7 {[%clk 0:00:11.5]} 30. Ng4 {[%clk 0:00:23.3]}
30... Qd1+ {[%clk 0:00:09.5]} 31. Kh2 {[%clk 0:00:23]} 31... Qd7 {[%clk
0:00:09.7]} 32. Qg5 {[%clk 0:00:20.1]} 32... Qd6 {[%clk 0:00:10.1]} 33. Ne3
{[%clk 0:00:17.6]} 33... Nb3 {[%clk 0:00:09.7]} 34. Bxb3 {[%clk 0:00:16.4]}
34... axb3 {[%clk 0:00:09.7]} 35. Qxg7+ {[%clk 0:00:17.1]} 35... Kxg7 {[%clk
0:00:09.5]} 36. Nf5+ {[%clk 0:00:18]} 36... Kf6 {[%clk 0:00:10]} 37. Nxd6 {[%clk
0:00:18.5]} 37... Ke6 {[%clk 0:00:10.9]} 38. Nb7 {[%clk 0:00:17.7]} 38... Kd7
{[%clk 0:00:10.6]} 39. Nc5+ {[%clk 0:00:16.5]} 39... Kc7 {[%clk 0:00:11.5]} 40.
Nxb3 {[%clk 0:00:17]} 40... Kb6 {[%clk 0:00:12.4]} 41. h4 {[%clk 0:00:17.3]}
41... c5 {[%clk 0:00:13.3]} 42. h5 {[%clk 0:00:17.6]} 42... c4 {[%clk
0:00:14.2]} 43. Nd2 {[%clk 0:00:17.6]} 43... Ka5 {[%clk 0:00:14]} 44. h6 {[%clk
0:00:17.9]} 44... b4 {[%clk 0:00:13.1]} 45. axb4+ {[%clk 0:00:16.8]} 45... Ka4
{[%clk 0:00:13.3]} 46. h7 {[%clk 0:00:17.3]} 1-0

[Event "Early-Titled-Tuesday-Blitz-May-07-2024"]
[Site "Chess.com"]
[Date "2024.05.07"]
[Round "9"]
[White "only_strong_moves"]
[Black "MFatigue"]
[Result "1-0"]
[WhiteElo "2710"]
[BlackElo "2516"]
[TimeControl "180+1"]
[EndTime "9:52:28 PDT"]
[Termination "only_strong_moves won by resignation"]

1. Nc3 {[%clk 0:03:00.9]} 1... d5 {[%clk 0:02:57.2]} 2. e4 {[%clk 0:03:00.3]}
2... e6 {[%clk 0:02:56]} 3. d4 {[%clk 0:02:59.6]} 3... Nf6 {[%clk 0:02:56.2]} 4.
e5 {[%clk 0:02:58.5]} 4... Nfd7 {[%clk 0:02:56]} 5. Nce2 {[%clk 0:02:59.1]} 5...
c5 {[%clk 0:02:56.4]} 6. c3 {[%clk 0:02:59.4]} 6... Nc6 {[%clk 0:02:57.1]} 7.
Nf3 {[%clk 0:02:59.4]} 7... Qb6 {[%clk 0:02:56.4]} 8. Nf4 {[%clk 0:02:59]} 8...
Be7 {[%clk 0:02:54.6]} 9. a3 {[%clk 0:02:59]} 9... cxd4 {[%clk 0:02:52.7]} 10.
cxd4 {[%clk 0:02:59]} 10... Na5 {[%clk 0:02:53.3]} 11. Be3 {[%clk 0:02:57.6]}
11... Qb3 {[%clk 0:02:52.3]} 12. Bd3 {[%clk 0:02:52.3]} 12... Qxd1+ {[%clk
0:02:30.3]} 13. Rxd1 {[%clk 0:02:53.2]} 13... Nb6 {[%clk 0:02:30]} 14. O-O
{[%clk 0:02:48]} 14... Bd7 {[%clk 0:02:30.2]} 15. Rc1 {[%clk 0:02:47.2]} 15...
O-O {[%clk 0:02:19.4]} 16. Bd2 {[%clk 0:02:38.6]} 16... Nac4 {[%clk 0:02:08.6]}
17. Bc3 {[%clk 0:02:38.4]} 17... Rfc8 {[%clk 0:02:06.4]} 18. Rc2 {[%clk
0:02:31.3]} 18... Na4 {[%clk 0:01:54.6]} 19. Rfc1 {[%clk 0:02:01.1]} 19... Nxc3
{[%clk 0:01:42]} 20. Bxc4 {[%clk 0:02:00.8]} 20... Rxc4 {[%clk 0:01:40.3]} 21.
Rxc3 {[%clk 0:02:01.1]} 21... Rac8 {[%clk 0:01:31]} 22. Rxc4 {[%clk 0:01:59.8]}
22... Rxc4 {[%clk 0:01:31.9]} 23. Rxc4 {[%clk 0:02:00.2]} 23... dxc4 {[%clk
0:01:32.8]} 24. Ne2 {[%clk 0:01:43.6]} 24... b5 {[%clk 0:01:29.4]} 25. Nd2
{[%clk 0:01:42.3]} 25... Bc6 {[%clk 0:01:19.2]} 26. f3 {[%clk 0:01:41.1]} 26...
f6 {[%clk 0:01:06.2]} 27. exf6 {[%clk 0:01:38.3]} 27... gxf6 {[%clk 0:01:07.1]}
28. Kf2 {[%clk 0:01:38.8]} 28... Kf7 {[%clk 0:01:00.5]} 29. Ke3 {[%clk
0:01:38.8]} 29... e5 {[%clk 0:01:00.7]} 30. g3 {[%clk 0:01:30.7]} 30... Ke6
{[%clk 0:01:00.7]} 31. Ne4 {[%clk 0:01:22.5]} 31... a5 {[%clk 0:00:42.7]} 32. g4
{[%clk 0:01:15.3]} 32... b4 {[%clk 0:00:38.5]} 33. axb4 {[%clk 0:01:16.2]} 33...
axb4 {[%clk 0:00:39.3]} 34. f4 {[%clk 0:01:10.4]} 34... exf4+ {[%clk 0:00:31.5]}
35. Nxf4+ {[%clk 0:01:09.3]} 35... Kd7 {[%clk 0:00:22.6]} 36. d5 {[%clk
0:01:10.2]} 36... Bb5 {[%clk 0:00:21.4]} 37. Kd4 {[%clk 0:01:10.8]} 37... Bd6
{[%clk 0:00:12.8]} 38. Ne6 {[%clk 0:01:09.8]} 38... Be5+ {[%clk 0:00:12.5]} 39.
Kc5 {[%clk 0:01:08.6]} 39... Ba6 {[%clk 0:00:11.8]} 40. Kxb4 {[%clk 0:01:08.2]}
40... Bxb2 {[%clk 0:00:11.7]} 41. N6c5+ {[%clk 0:01:07.5]} 41... Ke7 {[%clk
0:00:11]} 42. d6+ {[%clk 0:01:04.3]} 42... Kd8 {[%clk 0:00:11]} 43. Nxa6 {[%clk
0:01:04.7]} 43... Be5 {[%clk 0:00:07]} 44. Kxc4 {[%clk 0:01:04.2]} 44... Bxh2
{[%clk 0:00:07.3]} 45. Kd5 {[%clk 0:01:03.4]} 45... Ke8 {[%clk 0:00:05.3]} 46.
Ke6 {[%clk 0:01:02.1]} 46... Bxd6 {[%clk 0:00:05.2]} 47. Nxf6+ {[%clk 0:00:50]}
47... Kf8 {[%clk 0:00:05.1]} 48. Kxd6 {[%clk 0:00:50.1]} 48... Kg7 {[%clk
0:00:03.1]} 49. Ke5 {[%clk 0:00:50.5]} 49... Kg6 {[%clk 0:00:02.9]} 50. Nxh7
{[%clk 0:00:41.5]} 50... Kxh7 {[%clk 0:00:01.7]} 51. Kf5 {[%clk 0:00:42.1]}
51... Kg7 {[%clk 0:00:02.2]} 52. Nc5 {[%clk 0:00:42.1]} 52... Kf7 {[%clk
0:00:03.1]} 53. Ne6 {[%clk 0:00:41.7]} 1-0